bitfinex-derivatives/quotes_BTCF0:USTF0_20241022
["timestamp","ask_amount","ask_price","bid_price","bid_amount"]
[1729563275397,0.112,67676.0,67675.0,0.18480001]
[1729563277690,0.112,67676.0,67675.0,0.2729399]
[1729563278785,0.112,67676.0,67675.0,0.18480001]
[1729563283298,0.112,67676.0,67675.0,0.097908]
[1729563284795,0.112,67676.0,67675.0,0.024]
[1729563284997,0.295907,67676.0,67675.0,0.024]
[1729563289000,0.739187,67676.0,67675.0,0.024]
[1729563295105,0.862147,67676.0,67675.0,0.024]
[1729563296218,0.418867,67676.0,67675.0,0.024]
[1729563300509,0.528867,67676.0,67666.0,0.3608]
[1729563300709,0.183917,67667.0,67666.0,0.3608]
[1729563301007,0.11,67667.0,67666.0,0.434718]
[1729563301205,0.3608,67671.0,67666.0,0.40489145]
[1729563301403,0.11,67667.0,67666.0,0.3608]
[1729563301705,0.3608,67671.0,67670.0,0.073913]
[1729563302004,0.002,67676.0,67673.0,0.07391]
[1729563302300,0.002,67676.0,67674.0,0.073908]
[1729563302806,0.22,67675.0,67674.0,0.073908]
[1729563303104,0.002,67676.0,67669.0,0.04409767]
[1729563303105,0.001,67676.0,67675.0,0.073908]
[1729563303397,0.001,67676.0,67675.0,0.183908]
[1729563303798,0.112,67676.0,67675.0,0.183908]
[1729563303999,0.112,67676.0,67675.0,0.232508]
[1729563304304,0.112,67676.0,67675.0,0.122508]
[1729563304688,0.111,67676.0,67675.0,0.122508]
[1729563305005,0.112,67676.0,67675.0,0.122508]
[1729563306204,0.112,67676.0,67675.0,0.20924963]
[1729563306594,0.112,67676.0,67675.0,0.20924339]
[1729563306902,0.112,67676.0,67675.0,0.23060045]
[1729563309705,0.002,67676.0,67675.0,0.33398574]
[1729563311403,0.002,67676.0,67675.0,0.33359477]
[1729563312394,0.002,67676.0,67675.0,0.38059477]
[1729563312904,0.002,67676.0,67675.0,0.19086506]
[1729563317411,0.00221722,67681.0,67675.0,0.63414506]
[1729563317713,0.11,67691.0,67690.0,0.073892]
[1729563317902,0.073888,67694.0,67691.0,0.07389]
[1729563318103,0.4708,67692.0,67691.0,0.07389]
[1729563318505,0.36803413,67714.0,67689.0,0.11]
[1729563318809,0.073879,67702.0,67700.0,0.07388]
[1729563319003,0.11,67701.0,67700.0,0.07388]
[1729563320106,0.11,67701.0,67693.0,0.4708]
[1729563320310,0.09532364,67704.0,67697.0,0.073884]
[1729563320614,0.11,67698.0,67697.0,0.073884]
[1729563321404,0.11,67698.0,67697.0,0.075884]
[1729563321812,0.11,67698.0,67697.0,0.077884]
[1729563322813,0.11,67698.0,67697.0,0.075884]
[1729563323014,0.111,67698.0,67697.0,0.077884]
[1729563323311,0.001,67698.0,67697.0,0.187884]
[1729563323513,0.001,67698.0,67697.0,0.185884]
[1729563323715,0.001,67698.0,67697.0,0.187884]
[1729563323716,0.002,67698.0,67697.0,0.187884]
[1729563324113,0.11,67700.0,67697.0,0.11]
[1729563324307,0.11,67700.0,67699.0,0.073882]
[1729563325519,0.111,67700.0,67699.0,0.073882]
[1729563325910,0.112,67700.0,67699.0,0.073882]
[1729563326619,0.111,67700.0,67699.0,0.073882]
[1729563326806,0.112,67700.0,67699.0,0.087882]
[1729563327705,0.002,67700.0,67699.0,0.087882]
[1729563335618,0.879801,67700.0,67699.0,0.011082]
[1729563335823,0.073886,67696.0,67693.0,0.0439937]
[1729563336024,0.11,67694.0,67693.0,0.04399921]
[1729563336230,0.11,67694.0,67687.0,0.0586995]
[1729563336530,0.11,67688.0,67687.0,0.073894]
[1729563337633,0.11,67688.0,67687.0,0.075894]
[1729563338134,0.111,67688.0,67687.0,0.075894]
[1729563338348,0.001,67688.0,67687.0,0.075894]
[1729563338833,0.002,67688.0,67687.0,0.075894]
[1729563342022,0.05780472,67688.0,67687.0,0.075894]
[1729563342933,0.12137101,67688.0,67687.0,0.075894]
[1729563344131,0.002,67688.0,67687.0,0.26516625]
[1729563346528,0.002,67688.0,67687.0,0.25057772]
[1729563351731,0.112,67688.0,67687.0,0.17668372]
[1729563352038,0.1602,67688.0,67687.0,0.002]
[1729563352228,0.283494,67688.0,67687.0,0.002]
[1729563352430,0.30498903,67688.0,67687.0,0.002]
[1729563352834,0.36049742,67688.0,67687.0,0.002]
[1729563353043,0.36049742,67688.0,67682.0,0.00221619]
[1729563353044,0.073899,67683.0,67682.0,0.00221619]
[1729563353247,0.183899,67683.0,67682.0,0.00221619]
[1729563353434,0.79242358,67683.0,67682.0,0.00221619]
[1729563353628,0.60852458,67683.0,67672.0,0.073911]
[1729563353833,0.11,67673.0,67672.0,0.073911]
[1729563356334,0.124,67673.0,67672.0,0.073911]
[1729563356746,0.138,67673.0,67672.0,0.073911]
[1729563359344,0.138,67673.0,67672.0,0.16110758]
[1729563360730,0.21191,67673.0,67672.0,0.16110758]
[1729563361044,0.073911,67672.0,67671.0,0.07341456]
[1729563361245,0.073912,67671.0,67670.0,0.07341456]
[1729563361431,0.183912,67671.0,67670.0,0.16068142]
[1729563361636,0.073913,67670.0,67669.0,0.3608]
[1729563363535,0.087913,67670.0,67669.0,0.3608]
[1729563363735,0.087913,67670.0,67665.0,0.14733356]
[1729563363736,0.087913,67670.0,67665.0,0.073919]
[1729563363935,0.11,67666.0,67665.0,0.073919]
[1729563365436,0.124,67666.0,67665.0,0.073919]
[1729563367048,0.138,67666.0,67665.0,0.073919]
[1729563372040,0.138,67666.0,67662.0,0.3608]
[1729563372246,0.22,67663.0,67661.0,0.073922]
[1729563373842,0.073923,67661.0,67658.0,0.0505]
[1729563374042,0.073923,67661.0,67658.0,0.073926]
[1729563374043,0.11,67659.0,67658.0,0.073926]
[1729563374239,0.11,67659.0,67658.0,0.1473626]
[1729563374651,0.183924,67660.0,67657.0,0.0734366]
[1729563374652,0.073926,67658.0,67657.0,0.0734366]
[1729563374958,0.073932,67653.0,67649.0,0.073936]
[1729563375141,0.11,67660.0,67649.0,0.073936]
[1729563375347,0.11,67660.0,67654.0,0.0440702]
[1729563375348,0.007,67659.0,67654.0,0.0440702]
[1729563375547,0.07393,67655.0,67654.0,0.0440702]
[1729563375851,0.29393,67655.0,67654.0,0.0440702]
[1729563376248,0.29393,67655.0,67647.0,0.434738]
[1729563376249,0.073931,67654.0,67653.0,0.0440702]
[1729563376452,0.293931,67654.0,67653.0,0.0440702]
[1729563377560,0.33,67654.0,67640.0,0.0951]
[1729563377857,0.33,67654.0,67639.0,0.073947]
[1729563377858,0.293945,67641.0,67637.0,0.427345]
[1729563378049,0.22,67638.0,67637.0,0.426065]
[1729563379454,0.11,67638.0,67637.0,0.426065]
[1729563379646,0.22,67638.0,67637.0,0.426065]
[1729563379846,0.11,67638.0,67637.0,0.426065]
[1729563380048,0.112,67638.0,67637.0,0.426065]
[1729563380247,0.342,67638.0,67633.0,0.00221727]
[1729563380445,0.34,67634.0,67633.0,0.00221727]
[1729563382761,0.413953,67634.0,67633.0,0.00221727]
[1729563383061,0.073955,67632.0,67627.0,0.073959]
[1729563383254,0.17,67628.0,67627.0,0.073959]
[1729563384554,0.171,67628.0,67627.0,0.073959]
[1729563385855,0.172,67628.0,67627.0,0.073959]
[1729563388160,0.171,67628.0,67627.0,0.073959]
[1729563388760,0.17,67628.0,67627.0,0.073959]
[1729563389863,0.17,67628.0,67625.0,0.11936363]
[1729563390067,0.17,67628.0,67625.0,0.0977]
[1729563390271,0.073961,67627.0,67625.0,0.0977]
[1729563390662,0.073961,67626.0,67625.0,0.0483]
[1729563391868,0.074961,67626.0,67625.0,0.0483]
[1729563392967,0.001,67626.0,67617.0,0.0473]
[1729563393169,0.17,67618.0,67617.0,0.0947]
[1729563393364,0.17,67618.0,67617.0,0.168671]
[1729563394663,0.086962,67626.0,67621.0,0.073967]
[1729563394664,0.17,67622.0,67621.0,0.073967]
[1729563395871,0.179,67622.0,67621.0,0.073967]
[1729563397264,0.187,67622.0,67621.0,0.073967]
[1729563402279,0.127,67622.0,67621.0,0.073967]
[1729563404572,0.200966,67622.0,67617.0,0.168671]
[1729563404779,0.11,67618.0,67617.0,0.168671]
[1729563405179,0.11,67618.0,67617.0,0.33041263]
[1729563405381,0.017,67622.0,67621.0,0.073967]
[1729563405581,0.11,67622.0,67621.0,0.073967]
[1729563405781,0.119,67622.0,67621.0,0.073967]
[1729563407086,0.073967,67621.0,67619.0,0.0736069]
[1729563407285,0.073967,67621.0,67620.0,0.08821546]
[1729563407487,0.11,67621.0,67620.0,0.08821546]
[1729563407684,0.11,67621.0,67620.0,0.16218346]
[1729563407882,0.009,67622.0,67621.0,0.073967]
[1729563408081,0.127,67622.0,67621.0,0.16218246]
[1729563408682,0.073961,67627.0,67621.0,0.08821546]
[1729563408886,0.0214294,67629.0,67620.0,0.088041]
[1729563408887,0.11,67630.0,67627.0,0.07396]
[1729563409184,0.11,67630.0,67629.0,0.2577139]
[1729563409389,0.11,67630.0,67629.0,0.16192152]
[1729563409593,0.11221869,67632.0,67631.0,0.073956]
[1729563409789,0.11221869,67632.0,67631.0,0.16191952]
[1729563410092,0.11221869,67632.0,67631.0,0.25040731]
[1729563410286,0.17221869,67632.0,67631.0,0.16191952]
[1729563410490,0.17221869,67632.0,67631.0,0.16168812]
[1729563411092,0.17221869,67632.0,67631.0,0.25017591]
[1729563411490,0.18621869,67632.0,67631.0,0.25017591]
[1729563411695,0.18621869,67632.0,67631.0,0.16168812]
[1729563411992,0.18521869,67632.0,67631.0,0.16268812]
[1729563412188,0.19921869,67632.0,67631.0,0.16268812]
[1729563412389,0.19921869,67632.0,67631.0,0.25117591]
[1729563412693,0.19921869,67632.0,67631.0,0.16268812]
[1729563414190,0.18621869,67632.0,67631.0,0.16168812]
[1729563414395,0.19921869,67632.0,67631.0,0.16268812]
[1729563414801,0.17,67648.0,67631.0,0.26335734]
[1729563414983,0.17,67648.0,67647.0,0.073938]
[1729563415292,0.17,67648.0,67647.0,0.14761203]
[1729563415683,0.17,67648.0,67647.0,0.23450795]
[1729563416100,0.17,67648.0,67647.0,0.23452172]
[1729563416308,0.17,67648.0,67647.0,0.073938]
[1729563417387,0.171,67648.0,67647.0,0.073938]
[1729563417694,0.172,67648.0,67647.0,0.084938]
[1729563418096,0.172,67648.0,67647.0,0.085938]
[1729563418097,0.171,67648.0,67647.0,0.085938]
[1729563418298,0.171,67648.0,67647.0,0.075938]
[1729563418299,0.174,67648.0,67647.0,0.075938]
[1729563423199,0.004,67648.0,67647.0,0.075938]
[1729563423397,0.00221772,67655.0,67647.0,0.075938]
[1729563423599,0.00221772,67655.0,67654.0,0.243931]
[1729563424996,0.00321772,67655.0,67654.0,0.254931]
[1729563425591,0.0477,67665.0,67664.0,0.07392]
[1729563427194,0.0487,67665.0,67664.0,0.08792]
[1729563427496,0.0497,67665.0,67664.0,0.10192]
[1729563443407,0.0497,67665.0,67664.0,0.16046847]
[1729563444218,0.0497,67665.0,67664.0,0.10192]
[1729563446331,0.1597,67665.0,67664.0,0.10192]
[1729563449222,0.1597,67665.0,67664.0,0.26137139]
[1729563449614,0.1597,67665.0,67664.0,0.26137147]
[1729563449818,0.2697,67665.0,67664.0,0.18745147]
[1729563450011,0.594419,67665.0,67664.0,0.08678431]
[1729563450212,0.484419,67665.0,67664.0,0.08678732]
[1729563450417,0.24124566,67665.0,67664.0,0.10192]
[1729563450613,0.2197,67665.0,67664.0,0.10192]
[1729563450818,0.2197,67665.0,67664.0,0.17559403]
[1729563451016,0.0497,67665.0,67664.0,0.17559403]
[1729563451222,0.2197,67665.0,67664.0,0.1878]
[1729563451926,0.2197,67665.0,67664.0,0.10192]
[1729563452129,0.2197,67665.0,67664.0,0.1878727]
[1729563452626,0.2197,67665.0,67664.0,0.18786773]
[1729563456432,0.2197,67665.0,67664.0,0.29044882]
[1729563457723,0.2197,67665.0,67664.0,0.10192]
[1729563463828,0.2197,67665.0,67664.0,0.16081322]
[1729563464029,0.2197,67665.0,67662.0,0.05889322]
[1729563464227,0.2197,67665.0,67654.0,1.07509653]
[1729563464228,0.2199,67664.0,67656.0,0.05889322]
[1729563464533,0.2199,67664.0,67654.0,1.00148]
[1729563464534,0.07393,67655.0,67654.0,1.00148]
[1729563464728,0.24393,67655.0,67654.0,1.17493633]
[1729563464928,0.24393,67655.0,67654.0,1.08658141]
[1729563466124,0.24393,67655.0,67654.0,1.16012643]
[1729563466526,0.24393,67655.0,67654.0,1.16312643]
[1729563466527,0.24493,67655.0,67654.0,1.16312643]
[1729563466933,0.24493,67655.0,67654.0,1.003]
[1729563467137,0.24593,67655.0,67654.0,1.08154502]
[1729563467320,0.24593,67655.0,67654.0,1.008]
[1729563468639,0.24593,67655.0,67654.0,1.06681146]
[1729563469138,0.24593,67655.0,67654.0,1.008]
[1729563469339,0.24593,67655.0,67654.0,1.06681146]
[1729563469729,0.172,67655.0,67654.0,1.081931]
[1729563471336,0.172,67655.0,67654.0,1.2418774]
[1729563471527,0.172,67655.0,67654.0,1.15547602]
[1729563471723,0.172,67655.0,67654.0,1.081931]
[1729563472132,0.172,67655.0,67654.0,1.008]
[1729563472340,0.24593,67655.0,67654.0,1.008]
[1729563475039,0.24593,67655.0,67654.0,0.678]
[1729563475629,0.74593,67655.0,67654.0,0.678]
[1729563477638,0.74493,67655.0,67654.0,0.673]
[1729563477833,0.74593,67655.0,67654.0,0.678]
[1729563478540,0.073943,67643.0,67640.0,0.00221758]
[1729563478734,0.243943,67643.0,67640.0,0.00221758]
[1729563479539,0.243943,67643.0,67641.0,0.05877254]
[1729563479741,0.244943,67643.0,67641.0,0.05877254]
[1729563480244,0.244943,67643.0,67640.0,0.00521758]
[1729563480245,0.244943,67643.0,67640.0,0.06399012]
[1729563480433,0.245943,67643.0,67640.0,0.06399012]
[1729563480633,0.073944,67642.0,67640.0,0.06399012]
[1729563480850,0.073945,67641.0,67640.0,0.06177254]
[1729563481143,0.073945,67641.0,67640.0,0.003]
[1729563481144,0.517465,67641.0,67640.0,0.003]
[1729563481351,0.073956,67631.0,67628.0,0.05877254]
[1729563481552,0.17,67629.0,67626.0,0.06099062]
[1729563482047,0.17,67629.0,67626.0,0.00221808]
[1729563482637,0.183,67629.0,67626.0,0.00221808]
[1729563483051,0.183,67629.0,67626.0,0.05877254]
[1729563483052,0.24396,67627.0,67626.0,0.05877254]
[1729563483248,0.073963,67625.0,67620.0,0.0495]
[1729563483430,0.17,67621.0,67620.0,0.0495]
[1729563483837,0.5308,67621.0,67620.0,0.0495]
[1729563484231,0.17,67621.0,67620.0,0.0495]
[1729563485151,0.179,67621.0,67620.0,0.0495]
[1729563486049,0.188,67621.0,67620.0,0.0495]
[1729563488842,0.018,67621.0,67620.0,0.4103]
[1729563489043,0.018,67621.0,67620.0,0.484268]
[1729563490147,0.188,67621.0,67620.0,0.484268]
[1729563490348,0.188,67621.0,67620.0,0.123468]
[1729563490540,0.188,67621.0,67620.0,0.0495]
[1729563491545,0.188,67621.0,67613.0,0.3608]
[1729563491839,0.188,67621.0,67611.0,0.0458]
[1729563491840,0.073976,67613.0,67611.0,0.0458]
[1729563492543,0.073976,67613.0,67603.0,0.19504219]
[1729563492744,0.3608,67615.0,67604.0,0.0458]
[1729563493047,0.17,67605.0,67604.0,0.119786]
[1729563494859,0.17,67605.0,67604.0,0.0458]
[1729563495663,0.171,67605.0,67604.0,0.0458]
[1729563495865,0.073987,67603.0,67596.0,0.073993]
[1729563496156,0.7028,67605.0,67596.0,0.073993]
[1729563496157,0.17,67597.0,67596.0,0.073993]
[1729563496654,0.243994,67597.0,67592.0,0.073999]
[1729563496856,0.17,67593.0,67592.0,0.124799]
[1729563497443,0.17,67593.0,67592.0,0.073999]
[1729563498559,0.179,67593.0,67592.0,0.073999]
[1729563499864,0.188,67593.0,67592.0,0.073999]
[1729563500461,0.188,67593.0,67591.0,0.3608]
[1729563501655,0.179,67593.0,67591.0,0.3608]
[1729563501858,0.187,67593.0,67591.0,0.3608]
[1729563502257,0.178,67593.0,67591.0,0.3608]
[1729563502463,0.186,67593.0,67591.0,0.3608]
[1729563503548,0.016,67593.0,67592.0,0.073999]
[1729563504455,0.186,67593.0,67592.0,0.073999]
[1729563505059,0.187,67593.0,67592.0,0.073999]
[1729563505668,0.188,67593.0,67592.0,0.073999]
[1729563516465,0.188,67593.0,67592.0,0.11794928]
[1729563517373,0.074001,67590.0,67580.0,0.07354502]
[1729563517671,0.074001,67590.0,67564.0,0.3608]
[1729563517672,0.074017,67576.0,67564.0,0.43434502]
[1729563517874,0.5308,67581.0,67564.0,0.43434502]
[1729563517875,0.17,67565.0,67564.0,0.434829]
[1729563518469,0.17,67565.0,67564.0,0.878869]
[1729563519067,0.17,67565.0,67564.0,0.3608]
[1729563519472,0.171,67565.0,67564.0,0.3608]
[1729563520666,0.341,67565.0,67558.0,0.07354502]
[1729563520867,0.17,67557.0,67555.0,0.07354502]
[1729563521166,0.17,67557.0,67553.0,0.09519074]
[1729563521375,0.17,67557.0,67556.0,0.00222046]
[1729563521770,0.17,67557.0,67556.0,0.36302046]
[1729563521973,0.17,67557.0,67556.0,0.43705846]
[1729563522174,0.171,67557.0,67556.0,0.43705846]
[1729563522676,0.172,67557.0,67556.0,0.43705846]
[1729563525381,0.172,67557.0,67556.0,0.88113846]
[1729563526073,0.17,67564.0,67556.0,0.97710046]
[1729563526272,0.17,67564.0,67563.0,0.43483]
[1729563527275,0.171,67564.0,67563.0,0.43483]
[1729563527475,0.172,67564.0,67563.0,0.43483]
[1729563528276,0.173,67564.0,67563.0,0.43483]
[1729563538197,0.173,67564.0,67563.0,0.07403]
[1729563540894,0.175,67564.0,67563.0,0.07403]
[1729563542106,0.187,67564.0,67563.0,0.07403]
[1729563543106,0.184,67564.0,67563.0,0.07403]
[1729563543304,0.196,67564.0,67563.0,0.07403]
[1729563545603,0.196,67564.0,67563.0,0.16395307]
[1729563546000,0.196,67564.0,67563.0,0.07367562]
[1729563546203,0.196,67564.0,67561.0,0.07367562]
[1729563546399,0.17,67562.0,67560.0,0.07367562]
[1729563546603,0.17,67562.0,67557.0,0.434836]
[1729563546604,0.026,67564.0,67561.0,0.09019488]
[1729563546807,0.026,67564.0,67562.0,0.09019488]
[1729563547105,0.026,67564.0,67563.0,0.09019488]
[1729563547304,0.194,67564.0,67563.0,0.09019488]
[1729563547698,0.19,67564.0,67563.0,0.09019488]
[1729563548102,0.191,67564.0,67563.0,0.09019488]
[1729563548300,0.193,67564.0,67563.0,0.09019488]
[1729563549699,0.194,67564.0,67563.0,0.09019488]
[1729563550105,0.194,67564.0,67563.0,0.16422488]
[1729563550507,0.194,67564.0,67563.0,0.25278575]
[1729563551401,0.194,67564.0,67563.0,0.16422488]
[1729563552297,0.134,67564.0,67563.0,0.16422488]
[1729563552502,0.134,67564.0,67563.0,0.27167651]
[1729563552711,0.134,67564.0,67563.0,0.16422488]
[1729563552902,0.134,67564.0,67563.0,0.27156853]
[1729563555906,0.134,67564.0,67563.0,0.27141269]
[1729563560805,0.134,67564.0,67563.0,0.27129605]
[1729563562113,0.0008,67572.0,67571.0,0.074022]
[1729563562319,0.0226381,67572.0,67571.0,0.63481721]
[1729563562613,0.1574,67573.0,67572.0,0.074021]
[1729563562821,0.1574,67573.0,67572.0,0.27086303]
[1729563563514,0.1574,67573.0,67572.0,0.16401621]
[1729563564310,0.17926583,67573.0,67572.0,0.16401621]
[1729563564720,0.111,67573.0,67572.0,0.28301621]
[1729563565018,0.11,67584.0,67572.0,0.32661626]
[1729563565227,0.3608,67586.0,67583.0,0.07367433]
[1729563565228,0.11,67585.0,67583.0,0.07367433]
[1729563565520,0.074007,67584.0,67583.0,0.07367433]
[1729563566314,0.074009,67583.0,67580.0,0.07367433]
[1729563566517,0.17,67581.0,67580.0,0.07367433]
[1729563566815,0.17,67581.0,67576.0,0.074015]
[1729563567120,0.17,67577.0,67576.0,0.16242002]
[1729563567522,0.001,67585.0,67576.0,0.53236502]
[1729563567710,0.5308,67589.0,67588.0,0.074003]
[1729563567912,0.17,67589.0,67588.0,0.074003]
[1729563568112,0.17,67589.0,67588.0,0.16305881]
[1729563568318,0.17,67589.0,67588.0,0.074003]
[1729563569022,0.171,67589.0,67588.0,0.087003]
[1729563569211,0.19257191,67589.0,67588.0,0.087003]
[1729563570132,0.19357191,67589.0,67588.0,0.097003]
[1729563574224,0.002,67589.0,67588.0,0.267003]
[1729563577426,0.001,67589.0,67588.0,0.254003]
[1729563577648,0.001,67589.0,67588.0,0.27736427]
[1729563577835,0.002,67589.0,67588.0,0.28736427]
[1729563578133,0.002,67589.0,67588.0,0.34604978]
[1729563579322,0.002,67589.0,67588.0,0.28736427]
[1729563579524,0.002,67589.0,67588.0,0.34605197]
[1729563580428,0.002,67589.0,67588.0,0.28736427]
[1729563588237,0.002,67589.0,67588.0,0.22736427]
[1729563589731,0.002,67589.0,67588.0,0.38928858]
[1729563589922,0.002,67589.0,67588.0,0.31585457]
[1729563590123,0.002,67589.0,67588.0,0.38929588]
[1729563590528,0.002,67589.0,67588.0,0.31585457]
[1729563592232,0.002,67589.0,67588.0,0.31597698]
[1729563593532,0.002,67589.0,67588.0,0.404382]
[1729563594036,0.002,67589.0,67588.0,0.31597698]
[1729563594541,0.002,67589.0,67588.0,0.42168374]
[1729563597247,0.002,67589.0,67588.0,0.42181017]
[1729563598136,0.002,67589.0,67588.0,0.20607289]
[1729563598343,0.002,67589.0,67588.0,0.31607289]
[1729563598642,0.002,67589.0,67588.0,0.40447515]
[1729563600437,0.002,67589.0,67588.0,0.31607289]
[1729563600639,0.002,67589.0,67588.0,0.40447515]
[1729563601145,0.002,67589.0,67588.0,0.40450475]
[1729563601351,0.00221963,67593.0,67592.0,0.073999]
[1729563601544,0.00221963,67593.0,67592.0,0.27273722]
[1729563601745,0.00221963,67593.0,67592.0,0.16273722]
[1729563602549,0.00221963,67593.0,67592.0,0.17673722]
[1729563602846,0.00221963,67593.0,67592.0,0.19073722]
[1729563603042,0.00221963,67593.0,67592.0,0.29620327]
[1729563604335,0.11,67602.0,67592.0,0.22220427]
[1729563604534,0.3608,67604.0,67600.0,0.08836733]
[1729563604740,0.3608,67604.0,67603.0,0.11]
[1729563604950,0.3608,67604.0,67603.0,0.19873822]
[1729563605339,0.00221928,67607.0,67606.0,0.073983]
[1729563605644,0.3608,67617.0,67606.0,0.5588868]
[1729563605645,0.0965,67616.0,67606.0,0.5588868]
[1729563605845,0.0965,67616.0,67615.0,0.073973]
[1729563606034,0.0965,67616.0,67615.0,0.14748624]
[1729563606242,0.0965,67616.0,67615.0,0.23508574]
[1729563606436,0.0965,67616.0,67615.0,0.1615725]
[1729563606634,0.2065,67616.0,67615.0,0.073973]
[1729563606835,0.2065,67616.0,67612.0,0.07344484]
[1729563606836,0.2065,67616.0,67613.0,0.07344484]
[1729563607154,0.11,67614.0,67613.0,0.07344484]
[1729563607452,0.11,67614.0,67612.0,0.07344484]
[1729563607643,0.11,67614.0,67611.0,0.25742284]
[1729563608548,0.11,67614.0,67611.0,0.183978]
[1729563608736,0.11,67614.0,67612.0,0.014]
[1729563609555,0.11,67614.0,67611.0,0.087978]
[1729563609750,0.11,67614.0,67611.0,0.101978]
[1729563610345,0.11,67614.0,67611.0,0.028]
[1729563610753,0.11,67614.0,67613.0,0.05866871]
[1729563611248,0.11,67614.0,67612.0,0.014]
[1729563611447,0.0965,67616.0,67613.0,0.073976]
[1729563611749,0.00221899,67621.0,67614.0,0.11]
[1729563611954,0.00221899,67621.0,67613.0,0.05865834]
[1729563611955,0.02303394,67621.0,67620.0,0.183968]
[1729563612152,0.00221899,67621.0,67620.0,0.073968]
[1729563612347,0.00221899,67621.0,67620.0,0.183968]
[1729563613059,0.00221899,67621.0,67620.0,0.24262634]
[1729563613353,0.00221899,67621.0,67620.0,0.197968]
[1729563613548,0.00221899,67621.0,67620.0,0.25655006]
[1729563613754,0.05,67634.0,67620.0,0.124]
[1729563613755,0.4108,67634.0,67620.0,0.124]
[1729563613944,0.4108,67634.0,67633.0,0.11]
[1729563614143,0.3608,67634.0,67633.0,0.183954]
[1729563614653,0.02175953,67637.0,67633.0,0.183954]
[1729563614845,0.47156,67640.0,67636.0,0.11]
[1729563615177,0.11,67637.0,67633.0,0.11]
[1729563615351,0.11,67634.0,67633.0,0.11]
[1729563615551,0.11,67634.0,67630.0,0.183957]
[1729563615751,0.11,67634.0,67633.0,0.014]
[1729563616858,0.11,67634.0,67633.0,0.124]
[1729563617668,0.11,67634.0,67633.0,0.11]
[1729563618554,0.11,67634.0,67633.0,0.124]
[1729563618855,0.11,67634.0,67633.0,0.014]
[1729563619058,0.11,67634.0,67633.0,0.028]
[1729563619447,0.22,67634.0,67633.0,0.028]
[1729563619754,0.293953,67634.0,67633.0,0.028]
[1729563620258,0.687513,67634.0,67633.0,0.028]
[1729563620851,0.073956,67631.0,67619.0,0.43698729]
[1729563621056,0.17,67620.0,67619.0,0.00221829]
[1729563622153,0.17,67625.0,67620.0,0.073967]
[1729563622363,0.86156,67629.0,67623.0,0.17]
[1729563622364,0.36156,67629.0,67623.0,0.17]
[1729563622659,0.36156,67629.0,67619.0,0.03021829]
[1729563622660,0.3608,67629.0,67628.0,0.073959]
[1729563622955,0.3608,67629.0,67624.0,0.073963]
[1729563623158,0.17,67628.0,67626.0,0.073961]
[1729563623460,0.17,67628.0,67622.0,0.17]
[1729563623959,0.17,67628.0,67622.0,0.073966]
[1729563624352,0.001,67625.0,67622.0,0.073966]
[1729563624963,0.171,67625.0,67620.0,0.016]
[1729563625160,0.17,67621.0,67620.0,0.014]
[1729563625358,0.17,67621.0,67619.0,0.00221829]
[1729563626059,0.17,67621.0,67620.0,0.002]
[1729563626261,0.17,67621.0,67620.0,0.075968]
[1729563626652,0.171,67621.0,67620.0,0.073968]
[1729563627953,0.002,67621.0,67620.0,0.087968]
[1729563628464,0.002,67621.0,67620.0,0.101968]
[1729563632550,0.002,67621.0,67620.0,0.16054566]
[1729563632954,0.002,67621.0,67620.0,0.101968]
[1729563634465,0.002,67621.0,67620.0,0.18901932]
[1729563635973,0.002,67621.0,67620.0,0.27723521]
[1729563636974,0.002,67621.0,67620.0,0.63803521]
[1729563637377,0.002,67621.0,67620.0,0.54981932]
[1729563639274,0.002,67621.0,67620.0,0.65307057]
[1729563644297,0.002,67621.0,67620.0,0.65342235]
[1729563646479,0.002,67621.0,67620.0,0.76342235]
[1729563648265,0.002,67621.0,67620.0,0.82342235]
[1729563652579,0.002,67621.0,67620.0,0.65342235]
[1729563653079,0.002,67621.0,67620.0,0.63791984]
[1729563653776,0.002,67621.0,67620.0,0.80791984]
[1729563653975,0.002,67621.0,67620.0,0.80806249]
[1729563654277,0.0502,67634.0,67630.0,0.073957]
[1729563654483,0.0502,67634.0,67633.0,0.0734639]
[1729563654783,0.0502,67634.0,67633.0,0.16040104]
[1729563654974,0.0502,67634.0,67633.0,0.08693714]
[1729563655372,0.0502,67634.0,67633.0,0.16039618]
[1729563655575,0.2202,67634.0,67633.0,0.16039559]
[1729563655871,0.2202,67634.0,67633.0,0.17439559]
[1729563656183,0.171,67634.0,67633.0,0.17439559]
[1729563656385,0.19225342,67634.0,67633.0,0.17439559]
[1729563657082,0.19325342,67634.0,67633.0,0.17439559]
[1729563657677,0.19225342,67634.0,67633.0,0.11493714]
[1729563657870,0.19325342,67634.0,67633.0,0.11493714]
[1729563662985,0.172,67634.0,67633.0,0.11493714]
[1729563666089,0.002,67634.0,67633.0,0.71969114]
[1729563666676,0.002,67634.0,67633.0,0.80784782]
[1729563666885,0.002,67634.0,67633.0,0.71969114]
[1729563667588,0.002,67634.0,67633.0,0.80784736]
[1729563667986,0.002,67634.0,67633.0,0.80747193]
[1729563668186,0.172,67634.0,67633.0,0.63747193]
[1729563668382,0.172,67634.0,67633.0,0.18851571]
[1729563670680,0.172,67634.0,67633.0,0.11456171]